Workbook

Sheet Přehled
C2: =CONCATENATE("Kalkulace pro společnost: ",Kalkulace!C5) -> Kalkulace pro společnost: Projekce Projektant s.r.o.
D4: Stávající dodavatel | F4: Benefit Print s.r.o. | H4: Úspora
B9: Černobílý tisk | D9: =Kalkulace!F31 -> 1,875.00 Kč | F9: 0 | H9: =Kalkulace!F41 -> 31.03%
B13: Barevný tisk | D13: =Kalkulace!C31 -> 1,750.00 Kč | F13: =Kalkulace!C38 -> 2,500.00 Kč | H13: =Kalkulace!F40 -> 1,125.00 Kč

Sheet Kalkulace
B5: Společnost: | C5: Projekce Projektant s.r.o.
B8: Údaje o Vašich současných cenách:
B10: Barevné tisky účtujete v: | C10: 1 | E10: Černobílé tisky účtujete v: | F10: 1
B12: =VLOOKUP(C10,Výpočty!A4:E6,5) -> Cena za barevný výtisk A4 | C12: 7.00 Kč | E12: =VLOOKUP(F10,Výpočty!A4:H7,6) -> Cena za černobílý výtisk A4 | F12: 2.50 Kč
E13: =IF($F$10=4,Výpočty!F8,"") ->  | F13: 0.61 Kč
E14: =IF($F$10=4,Výpočty!F9,"") ->  | F14: 0.50 Kč
E15: =IF($F$10=4,Výpočty!F10,"") ->  | F15: 0.40 Kč
E16: =IF($F$10=4,Výpočty!F11,"") ->  | F16: 0.31 Kč
B19: Údaje o Vašem projektu:
B21: Počet paré: | C21: 10
B22: Počet barevných jednotek: | C22: 25 | D22: =VLOOKUP(C10,Výpočty!A4:D6,4) -> A4 | E22: Počet černobílých jednotek: | F22: =100-C22 -> 75 | G22: =VLOOKUP(F10,Výpočty!A4:I7,8) -> A4
F23: 200 | G23: =IF($F$10=4,Výpočty!H8,"") -> 
F24: 300 | G24: =IF($F$10=4,Výpočty!H9,"") -> 
F25: 400 | G25: =IF($F$10=4,Výpočty!H10,"") -> 
F26: 500 | G26: =IF($F$10=4,Výpočty!H11,"") -> 
B29: Cena u současného dodavatele:
B31: Barevné tisky | C31: =Výpočty!B20 -> 1,750.00 Kč | E31: Černobílé tisky: | F31: =Výpočty!E20 -> 1,875.00 Kč
B32: Cena celkem: | C32: =F31+C31 -> 3,625.00 Kč
B35: Cena u Benefit Print:
B37: Barevné tisky | C37: =VLOOKUP(C10,Výpočty!A24:F26,2+F10)*C22*C21 -> 625.00 Kč | E37: Černobílé tisky: | F37: =F31 -> 1,875.00 Kč
B38: Cena celkem: | C38: =F37+C37 -> 2,500.00 Kč
E40: Ušetříte celkem: | F40: =C32-C38 -> 1,125.00 Kč
E41: to je: | F41: =1-(C38/C32) -> 31.03%
F42: Všechny černobílé tisky přitom mohou být v barvě!!

Sheet Výpočty
B2: Údaje o současných cenách: | N2: Koeficient | P2: 2.9
L3: 1 | M3: A4 - > A4 | N3: 1 | S3: 1000 | T3: A4 | U3: =S3*Kalkulace!C12 -> 7000
A4: 1 | B4: Cena za barevný výtisk | C4: 7.00 Kč | D4: A4 | E4: =CONCATENATE($B$4," ",D4) -> Cena za barevný výtisk A4 | F4: Cena za černobílý výtisk A4 | G4: 2.97 Kč | H4: A4 | I4: 2.97 Kč | L4: 2 | M4: A4 - > DM | N4: 0.16 | R4: =N4*P2 -> 0.464 | S4: =2.1*2.97*S3 -> 6237 | T4: dm
A5: 2 | C5: 11.20 Kč | D5: dm2 | E5: =CONCATENATE($B$4," ",D5) -> Cena za barevný výtisk dm2 | F5: Cena za černobílý výtisk dm2 | G5: 0.48 Kč | H5: dm2 | I5: 0.48 Kč | L5: 3 | M5: A4 - > M | N5: 16 | R5: =P2*N5 -> 46.4 | S5: =S4/100 -> 62.37 | T5: m
A6: 3 | C6: 112.00 Kč | D6: m2 | E6: Cena za barevný výtisk m2 | F6: Cena za černobílý výtisk m2 | G6: 47.50 Kč | H6: m2 | I6: 47.50 Kč | L6: 4 | M6: A4 -> CM
A7: 4 | F7: Cena za černobílý výtisk šířka 914 | G7: =Kalkulace!F12 -> 2.50 Kč | H7: běžné cm 914 | I7: 0.75 Kč | J7: =(100/0.914)*G7 -> 273.52 Kč | L7: 5 | M7: DM -> A4
F8: Cena za černobílý výtisk šířka 841 | G8: =Kalkulace!F13 -> 0.61 Kč | H8: běžné cm 841 | I8: 0.61 Kč | J8: =(100/0.841)*G8 -> 72.53 Kč | L8: 6 | M8: M -> A4
F9: Cena za černobílý výtisk šířka 594 | G9: =Kalkulace!F14 -> 0.50 Kč | H9: běžné cm 594 | I9: 0.50 Kč | J9: =(100/0.594)*G9 -> 84.18 Kč | L9: 7 | M9: CM -> A4
F10: Cena za černobílý výtisk šířka 420 | G10: =Kalkulace!F15 -> 0.40 Kč | H10: běžné cm 420 | I10: 0.40 Kč | J10: =(100/0.42)*G10 -> 95.24 Kč | L10: 8 | M10: M -> DM
F11: Cena za černobílý výtisk šířka 297 | G11: =Kalkulace!F16 -> 0.31 Kč | H11: běžné cm 297 | I11: 0.31 Kč | J11: =(100/0.297)*G11 -> 104.38 Kč
B13: Barva: | E13: ČB: | G13: Formátů A4 | O13: A4 | P13: DM | Q13: M | R13: BCM
D14: 914 | E14: =Kalkulace!F12*Kalkulace!F22 -> 187.5 | F14: =Kalkulace!F12*Kalkulace!F22 -> 187.50 Kč | G14: =(Kalkulace!F22*Kalkulace!$C$21*(D14/10))/623.7 -> 109.91 | N14: A4 | O14: x | P14: 6.237 | Q14: =1/16 -> 0.0625
D15: 841 | E15: =IF(Kalkulace!$F$10=4,F15,0) -> 0 | F15: =Kalkulace!F13*Kalkulace!F23 -> 122.00 Kč | G15: =(Kalkulace!F23*Kalkulace!$C$21*(D15/10))/623.7 -> 269.68 | N15: DM | O15: =1/P14 -> 0.1603334937 | P15: x | Q15: 0.01
D16: 594 | E16: =IF(Kalkulace!$F$10=4,F16,0) -> 0 | F16: =Kalkulace!F14*Kalkulace!F24 -> 150.00 Kč | G16: =(Kalkulace!F24*Kalkulace!$C$21*(D16/10))/623.7 -> 285.71 | N16: M | O16: 16 | P16: 100 | Q16: x
D17: 420 | E17: =IF(Kalkulace!$F$10=4,F17,0) -> 0 | F17: =Kalkulace!F15*Kalkulace!F25 -> 160.00 Kč | G17: =(Kalkulace!F25*Kalkulace!$C$21*(D17/10))/623.7 -> 269.36 | N17: CM | R17: x
D18: 297 | E18: =IF(Kalkulace!$F$10=4,F18,0) -> 0 | F18: =Kalkulace!F16*Kalkulace!F26 -> 155.00 Kč | G18: =(Kalkulace!F26*Kalkulace!$C$21*(D18/10))/623.7 -> 238.10
A19: 1 | B19: =Kalkulace!C12*Kalkulace!C22 -> 175.00 Kč | E19: =SUM(E14:E18) -> 187.50 Kč | G19: =SUM(G14:G18) -> 1172.76
A20: =Kalkulace!C21 -> 10 | B20: =A20*B19 -> 1,750.00 Kč | E20: =A20*E19 -> 1,875.00 Kč | G20: =E20/G19 -> 1.60 Kč
A23: Přepočtená cena: | C23: Z A4 | D23: Z DM2 | E23: Z M2 | F23: Z bcm
A24: 1 | B24: A4 | C24: =Kalkulace!F12 -> 2.50 Kč | D24: =Kalkulace!F12*6.237 -> 15.59 Kč | E24: =Kalkulace!F12/16 -> 0.16 Kč | F24: =G20 -> 1.60 Kč
A25: 2 | B25: dm2 | C25: =C24/6.237 -> 0.40 Kč | D25: =D24/6.237 -> 2.50 Kč | E25: =Kalkulace!F12/100 -> 0.03 Kč | F25: =G20/6.237 -> 0.26 Kč
A26: 3 | B26: m2 | C26: =C24*16 -> 40.00 Kč | D26: =D25*100 -> 250.00 Kč | E26: =Kalkulace!F12 -> 2.50 Kč | F26: =G20*16 -> 25.58 Kč
